fUST/lending_fUST_20250525
["ID","MTS","AMOUNT","RATE_DAILY","PERIOD"]
[362280700,1748151051376,-430.0,0.00020821,2]
[362280701,1748151051385,-430.0,0.00020821,2]
[362280702,1748151051395,-430.0,0.00020821,2]
[362280703,1748151051404,-430.0,0.00020821,2]
[362280704,1748151051414,-567.8,0.00020821,2]
[362280705,1748151051424,-575.03,0.00020821,2]
[362280706,1748151051433,-450.31,0.00020821,2]
[362280707,1748151051442,-430.0,0.00020821,2]
[362280708,1748151051451,-1220.42,0.00020821,2]
[362280709,1748151051460,-1189.16,0.00020821,2]
[362280710,1748151051470,-562.5,0.00020821,2]
[362280711,1748151051479,-430.0,0.00020821,2]
[362280712,1748151051488,-430.0,0.00020821,2]
[362280713,1748151051497,-430.0,0.00020821,2]
[362280714,1748151051507,-430.0,0.00020821,2]
[362280715,1748151051516,-430.0,0.00020821,2]
[362280716,1748151051525,-430.0,0.00020821,2]
[362280717,1748151051535,-430.0,0.00020821,2]
[362280718,1748151051544,-430.0,0.00020821,2]
[362280719,1748151051553,-1833.02,0.00020821,2]
[362280720,1748151051562,-914.86,0.00020821,2]
[362280721,1748151051571,-430.0,0.00020821,2]
[362280722,1748151051581,-917.56,0.00020821,2]
[362280723,1748151051590,-1898.48,0.00020821,2]
[362280724,1748151051687,-2414.58,0.00020821,2]
[362280725,1748151051707,-581.89,0.00020821,2]
[362280726,1748151051716,-430.0,0.00020821,2]
[362280727,1748151051725,-1475.12,0.00020821,2]
[362280728,1748151051734,-430.0,0.00020821,2]
[362280729,1748151051743,-430.0,0.00020821,2]
[362280730,1748151051752,-1264.8,0.00020821,2]
[362280731,1748151051762,-430.0,0.00020821,2]
[362280732,1748151051771,-430.0,0.00020821,2]
[362280733,1748151051781,-806.23,0.00020821,2]
[362280734,1748151051790,-824.7,0.00020821,2]
[362280735,1748151051800,-1783.27,0.00020821,2]
[362280736,1748151051809,-430.0,0.00020821,2]
[362280737,1748151051819,-769.08,0.00020821,2]
[362280738,1748151051828,-1237.98,0.00020821,2]
[362280739,1748151051838,-563.29,0.00020821,2]
[362280740,1748151051847,-1283.95,0.00020821,2]
[362280741,1748151051857,-2015.0,0.00021,2]
[362280742,1748151051866,-4506.59081657,0.00021,2]
[362280743,1748151051876,-2000.0,0.00021,2]
[362280744,1748151051885,-160.179342,0.00021,2]
[362280745,1748151051894,-160.179342,0.00021,2]
[362280746,1748151051904,-151.0,0.00021,2]
[362280747,1748151051914,-151.0,0.00021,2]
[362280748,1748151051923,-514.333942,0.00021,2]
[362280749,1748151051934,-514.333942,0.00021,2]
[362280750,1748151051944,-91.64257026,0.00021,2]
[362280751,1748151051967,-272.19120742,0.00021,2]
[362280752,1748151144951,187.358684,0.00013699,2]
[362280797,1748152232551,-232.57867195,0.00017228,2]
[362280798,1748152232561,-246.12284702,0.00017661,2]
[362280799,1748152232571,-1907.815517,0.00017761,2]
[362280800,1748152232580,-165.532573,0.0001795,2]
[362280801,1748152232590,-165.532573,0.00018039,2]
[362280802,1748152232600,-300.0,0.00018126,2]
[362280803,1748152232610,-300.0,0.00018126,2]
[362280804,1748152232620,-300.0,0.00018126,2]
[362280808,1748152232812,-1200.0,0.00018126,2]
[362280809,1748152232822,-14370.10064409,0.00018127,2]
[362280832,1748152238397,-478.70831761,0.00018127,2]
[362280833,1748152238409,-205.9417102,0.00018272,2]
[362280834,1748152238420,-157.826064,0.00018439,2]
[362280835,1748152238431,-207.4,0.00018683,2]
[362280836,1748152238442,-600.02166365,0.000189,2]
[362280837,1748152238454,-160.0,0.00019143,2]
[362280838,1748152238464,-173.22,0.00019176,2]
[362280839,1748152238474,-300.0,0.00019177,2]
[362280840,1748152238485,-442.76256266,0.00019177,2]
[362280841,1748152238496,-500.0,0.00019177,2]
[362280842,1748152238507,-500.0,0.00019177,2]
[362280843,1748152238518,-461.57809599,0.00019177,2]
[362280844,1748152238530,-430.0,0.00019178,2]
[362280846,1748152238540,-430.0,0.00019178,2]
[362280848,1748152238549,-431.96881648,0.00019178,2]
[362280850,1748152238558,-367.42699172,0.00019178,2]
[362280851,1748152238567,-430.0,0.00019178,2]
[362280853,1748152238576,-435.66959753,0.00019178,2]
[362280855,1748152238586,-430.0,0.00019178,2]
[362280856,1748152238597,-430.0,0.00019178,2]
[362280857,1748152238607,-563.72596253,0.00019178,2]
[362280858,1748152238616,-430.0,0.00019178,2]
[362280859,1748152238625,-216.43,0.00019178,2]
[362280860,1748152238634,-430.0,0.00019178,2]
[362280861,1748152238643,-441.56855625,0.00019178,2]
[362280862,1748152238653,-240.15466135,0.00019178,2]
[362280863,1748152238663,-438.21832103,0.00019178,2]
[362280864,1748152238672,-442.24098904,0.00019178,2]
[362280865,1748152238682,-468.73736668,0.00019178,2]
[362280866,1748152238691,-432.99624759,0.00019178,2]
[362280867,1748152238700,-401.21346816,0.00019178,2]
[362280868,1748152238710,-407.5076891,0.00019178,2]
[362280869,1748152238719,-430.0,0.00019178,2]
[362280870,1748152238728,-430.0,0.00019178,2]
[362280871,1748152238738,-408.69922004,0.00019178,2]
[362280872,1748152238748,-430.0,0.00019178,2]
[362280873,1748152238758,-402.02227872,0.00019178,2]
[362280874,1748152238767,-276.73317947,0.00019178,2]
[362280875,1748152238777,-430.0,0.00019178,2]
[362280876,1748152238787,-408.58806194,0.00019178,2]
[362280877,1748152238796,-430.0,0.00019178,2]
[362280878,1748152238806,-409.23116239,0.00019178,2]
[362280879,1748152238815,-401.52267324,0.00019178,2]
[362280880,1748152238825,-505.1413451,0.00019178,2]
[362280881,1748152238834,-446.57328467,0.00019178,2]
[362280882,1748152238844,-408.67301711,0.00019178,2]
[362280883,1748152238853,-430.0,0.00019178,2]
[362280884,1748152238862,-408.38828249,0.00019178,2]
[362280885,1748152238872,-407.487726,0.00019178,2]
[362280886,1748152238881,-401.89022466,0.00019178,2]
[362280887,1748152238890,-402.41386394,0.00019178,2]
[362280888,1748152238900,-409.23615045,0.00019178,2]
[362280889,1748152238910,-402.31819553,0.00019178,2]
[362280890,1748152238919,-435.08249657,0.00019178,2]
[362280891,1748152238928,-408.85734937,0.00019178,2]
[362280892,1748152238938,-437.55193933,0.00019178,2]
[362280893,1748152238948,-432.13740729,0.00019178,2]
[362280894,1748152238957,-408.94561647,0.00019178,2]
[362280895,1748152238966,-430.0,0.00019178,2]
[362280896,1748152238975,-400.0,0.00019178,2]
[362280897,1748152238984,-384.33910515,0.00019178,2]
[362280898,1748152238994,-430.0,0.00019178,2]
[362280899,1748152239003,-406.17873588,0.00019178,2]
[362280900,1748152239012,-415.43198078,0.00019178,2]
[362280901,1748152239021,-418.58675441,0.00019178,2]
[362280902,1748152239030,-401.18950315,0.00019178,2]
[362280903,1748152239040,-283.65128043,0.00019178,2]
[362280904,1748152239051,-430.0,0.00019178,2]
[362280905,1748152239061,-401.78335046,0.00019178,2]
[362280906,1748152239070,-409.13778733,0.00019178,2]
[362280907,1748152239079,-430.0,0.00019178,2]
[362280908,1748152239090,-430.0,0.00019178,2]
[362280909,1748152239099,-401.53407054,0.00019178,2]
[362280910,1748152239108,-431.9782904,0.00019178,2]
[362280911,1748152239120,-432.1872106,0.00019178,2]
[362280912,1748152239129,-405.47964189,0.00019178,2]
[362280913,1748152239138,-437.9960255,0.00019178,2]
[362280914,1748152239147,-434.51360634,0.00019178,2]
[362280915,1748152239156,-431.61795158,0.00019178,2]
[362280916,1748152239165,-430.0,0.00019178,2]
[362280917,1748152239174,-500.0,0.00019178,2]
[362280918,1748152239184,-430.0,0.00019178,2]
[362280919,1748152239193,-440.52404097,0.00019178,2]
[362280920,1748152239202,-430.67319587,0.00019178,2]
[362280921,1748152239212,-354.21846109,0.00019178,2]
[362280922,1748152239223,-430.0,0.00019178,2]
[362280923,1748152239233,-432.40809727,0.00019178,2]
[362280924,1748152239242,-222.93687099,0.00019178,2]
[362280925,1748152239251,-437.22114813,0.00019178,2]
[362280926,1748152239260,-430.0,0.00019178,2]
[362280927,1748152239269,-431.34835973,0.00019178,2]
[362280928,1748152239279,-496.7086448,0.00019178,2]
[362280929,1748152239288,-430.02822067,0.00019178,2]
[362280930,1748152239297,-551.69256863,0.00019178,2]
[362280931,1748152239306,-431.86204301,0.00019178,2]
[362280932,1748152239315,-355.1773106,0.00019178,2]
[362280933,1748152239324,-436.57076284,0.00019178,2]
[362280934,1748152239334,-367.1453051,0.00019178,2]
[362280935,1748152239343,-403.7865706,0.00019178,2]
[362280936,1748152239352,-430.0,0.00019178,2]
[362280937,1748152239362,-430.0,0.00019178,2]
[362280938,1748152239371,-414.84690033,0.00019178,2]
[362280939,1748152239380,-432.39411504,0.00019178,2]
[362280940,1748152239390,-430.0,0.00019178,2]
[362280941,1748152239399,-425.0,0.00019178,2]
[362280942,1748152239408,-414.10560202,0.00019178,2]
[362280943,1748152239417,-430.0,0.00019178,2]
[362280944,1748152239427,-430.0,0.00019178,2]
[362280945,1748152239436,-414.44469776,0.00019178,2]
[362280946,1748152239445,-433.19442762,0.00019178,2]
[362280947,1748152239454,-430.0,0.00019178,2]
[362280948,1748152239463,-401.78590368,0.00019178,2]
[362280949,1748152239473,-403.92011412,0.00019178,2]
[362280950,1748152239482,-430.0,0.00019178,2]
[362280951,1748152239492,-456.13634286,0.00019178,2]
[362280952,1748152239501,-430.0,0.00019178,2]
[362280953,1748152239510,-430.0,0.00019178,2]
[362280954,1748152239519,-430.0,0.00019178,2]
[362280955,1748152239528,-443.93403616,0.00019178,2]
[362280956,1748152239537,-259.62109632,0.00019178,2]
[362280957,1748152239546,-440.82921812,0.00019178,2]
[362280958,1748152239555,-430.0,0.00019178,2]
[362280959,1748152239565,-430.0,0.00019178,2]
[362280960,1748152239574,-440.65396976,0.00019178,2]
[362280961,1748152239583,-438.53902339,0.00019178,2]
[362280962,1748152239592,-430.0,0.00019178,2]
[362280963,1748152239601,-441.30410473,0.00019178,2]
[362280964,1748152239610,-432.76508386,0.00019178,2]
[362280965,1748152239619,-438.01759765,0.00019178,2]
[362280966,1748152239629,-441.14511341,0.00019178,2]
[362280967,1748152239639,-551.32874995,0.00019178,2]
[362280968,1748152239649,-450.53154218,0.00019178,2]
[362280969,1748152239663,-435.65840138,0.00019178,2]
[362280970,1748152239673,-437.3052669,0.00019178,2]
[362280971,1748152239684,-430.0,0.00019178,2]
[362280972,1748152239697,-436.36370377,0.00019178,2]
[362280973,1748152239706,-437.70049157,0.00019178,2]
[362280974,1748152239716,-434.70313415,0.00019178,2]
[362280975,1748152239725,-570.0,0.00019178,2]
[362280976,1748152239735,-430.0,0.00019178,2]
[362280977,1748152239744,-353.81956451,0.00019178,2]
[362280978,1748152239754,-440.15407175,0.00019178,2]
[362280979,1748152239763,-438.34197677,0.00019178,2]
[362280980,1748152239773,-432.0471224,0.00019178,2]
[362280981,1748152239782,-430.0,0.00019178,2]
[362280982,1748152239792,-353.66549308,0.00019178,2]
[362280983,1748152239801,-430.0,0.00019178,2]
[362280984,1748152239811,-430.0,0.00019178,2]
[362280985,1748152239821,-441.06261474,0.00019178,2]
[362280986,1748152239830,-440.4624023,0.00019178,2]
[362280987,1748152239840,-430.0,0.00019178,2]
[362280988,1748152239850,-430.0,0.00019178,2]
[362280989,1748152239860,-436.48330293,0.00019178,2]
[362280990,1748152239870,-430.0,0.00019178,2]
[362280991,1748152239879,-430.0,0.00019178,2]
[362280992,1748152239889,-430.0,0.00019178,2]
[362280994,1748152239898,-228.19909823,0.00019178,2]
[362280995,1748152239909,-430.0,0.00019178,2]
[362280996,1748152239919,-430.0,0.00019178,2]
[362280997,1748152239928,-430.0,0.00019178,2]
[362280998,1748152239937,-338.85150036,0.00019178,2]
[362280999,1748152239946,-430.0,0.00019178,2]
[362281000,1748152240066,-430.0,0.00019178,2]
[362281001,1748152240076,-430.0,0.00019178,2]
[362281002,1748152240085,-430.0,0.00019178,2]
[362281003,1748152240094,-430.0,0.00019178,2]
[362281004,1748152240103,-430.0,0.00019178,2]
[362281005,1748152240112,-430.0,0.00019178,2]
[362281006,1748152240121,-430.0,0.00019178,2]
[362281007,1748152240130,-325.51,0.00019178,2]
[362281008,1748152240139,-430.0,0.00019178,2]
[362281009,1748152240148,-430.0,0.00019178,2]
[362281011,1748152240157,-430.0,0.00019178,2]
[362281012,1748152240166,-409.82,0.00019178,2]
[362281013,1748152240175,-443.14,0.00019178,2]
[362281014,1748152240184,-430.0,0.00019178,2]
[362281015,1748152240193,-539.44891595,0.00019178,2]
[362281016,1748152240202,-430.0,0.00019178,2]
[362281017,1748152240211,-430.0,0.00019178,2]
[362281018,1748152240220,-514.63,0.00019178,2]
[362281019,1748152240229,-310.80700927,0.00019178,2]
[362281020,1748152240238,-284.21815844,0.00019178,2]
[362281021,1748152240247,-430.0,0.00019178,2]
[362281022,1748152240256,-912.07,0.00019178,2]
[362281023,1748152240265,-430.0,0.00019178,2]
[362281024,1748152240274,-430.0,0.00019178,2]
[362281025,1748152240283,-430.0,0.00019178,2]
[362281026,1748152240292,-430.0,0.00019178,2]
[362281027,1748152240301,-892.48,0.00019178,2]
[362281028,1748152240310,-430.0,0.00019178,2]
[362281029,1748152240319,-430.0,0.00019178,2]
[362281031,1748152240329,-430.0,0.00019178,2]
[362281032,1748152240338,-430.0,0.00019178,2]
[362281034,1748152240347,-430.0,0.00019178,2]
[362281037,1748152240359,-430.0,0.00019178,2]
[362281039,1748152240368,-438.71776947,0.00019178,2]
[362281041,1748152240378,-1399.24,0.00019178,2]
[362281043,1748152240387,-430.0,0.00019178,2]
[362281045,1748152240397,-430.0,0.00019178,2]
[362281047,1748152240407,-430.0,0.00019178,2]
[362281050,1748152240417,-430.0,0.00019178,2]
[362281052,1748152240426,-430.0,0.00019178,2]
[362281054,1748152240436,-430.0,0.00019178,2]
[362281056,1748152240446,-683.86,0.00019178,2]
[362281058,1748152240455,-430.0,0.00019178,2]
[362281060,1748152240465,-430.0,0.00019178,2]
[362281062,1748152240475,-430.0,0.00019178,2]
[362281064,1748152240485,-430.0,0.00019178,2]
[362281066,1748152240494,-685.77,0.00019178,2]
[362281068,1748152240505,-430.0,0.00019178,2]
[362281070,1748152240515,-1412.95,0.00019178,2]
[362281072,1748152240524,-430.0,0.00019178,2]
[362281074,1748152240535,-430.0,0.00019178,2]
[362281076,1748152240544,-430.0,0.00019178,2]
[362281078,1748152240554,-430.0,0.00019178,2]
[362281080,1748152240563,-430.0,0.00019178,2]
[362281082,1748152240572,-430.0,0.00019178,2]
[362281084,1748152240582,-430.09,0.00019178,2]
[362281086,1748152240591,-1817.58,0.00019178,2]
[362281088,1748152240600,-430.0,0.00019178,2]
[362281090,1748152240609,-304.90451865,0.00019178,2]
[362281092,1748152240619,-1072.79,0.00019178,2]
[362281094,1748152240628,-946.12,0.00019178,2]
[362281096,1748152240638,-430.0,0.00019178,2]
[362281098,1748152240647,-430.0,0.00019178,2]
[362281100,1748152240657,-430.0,0.00019178,2]
[362281102,1748152240666,-430.0,0.00019178,2]
[362281104,1748152240676,-430.0,0.00019178,2]
[362281106,1748152240685,-430.0,0.00019178,2]
[362281108,1748152240695,-430.0,0.00019178,2]
[362281110,1748152240705,-430.0,0.00019178,2]
[362281112,1748152240714,-190.14678823,0.00019178,2]
[362281113,1748152240724,-430.0,0.00019178,2]
[362281115,1748152240735,-430.0,0.00019178,2]
[362281117,1748152240745,-588.99,0.00019178,2]
[362281119,1748152240755,-430.0,0.00019178,2]
[362281121,1748152240764,-430.0,0.00019178,2]
[362281124,1748152240774,-581.15,0.00019178,2]
[362281126,1748152240783,-1281.07,0.00019178,2]
[362281128,1748152240793,-602.07,0.00019178,2]
[362281129,1748152240802,-430.0,0.00019178,2]
[362281131,1748152240812,-430.0,0.00019178,2]
[362281133,1748152240821,-386.01812521,0.00019178,2]
[362281135,1748152240831,-430.0,0.00019178,2]
[362281137,1748152240840,-981.44,0.00019178,2]
[362281139,1748152240850,-912.73,0.00019178,2]
[362281142,1748152240859,-430.0,0.00019178,2]
[362281143,1748152240868,-430.0,0.00019178,2]
[362281145,1748152240877,-430.0,0.00019178,2]
[362281147,1748152240887,-438.03,0.00019178,2]
[362281149,1748152240896,-430.0,0.00019178,2]
[362281151,1748152240905,-179.441559,0.00019178,2]
[362281153,1748152240915,-1337.23332301,0.00019278,2]
[362281156,1748152240925,-369.79470204,0.00019352,2]
[362281158,1748152240934,-430.0,0.00019452,2]
[362281160,1748152240943,-430.0,0.00019452,2]
[362281162,1748152240953,-445.07597843,0.00019452,2]
[362281164,1748152240962,-430.0,0.00019452,2]
[362281166,1748152240971,-435.16365248,0.00019452,2]
[362281168,1748152240980,-467.57162352,0.00019452,2]
[362281170,1748152240989,-430.0,0.00019452,2]
[362281172,1748152240999,-414.65485827,0.00019452,2]
[362281174,1748152241009,-444.68,0.00019452,2]
[362281176,1748152241018,-430.0,0.00019452,2]
[362281178,1748152241027,-430.0,0.00019452,2]
[362281180,1748152241037,-532.9539673,0.00019452,2]
[362281182,1748152241051,-430.0,0.00019452,2]
[362281184,1748152241059,-430.0,0.00019452,2]
[362281186,1748152241069,-430.0,0.00019452,2]
[362281188,1748152241078,-430.0,0.00019452,2]
[362281190,1748152241089,-430.0,0.00019452,2]
[362281191,1748152241098,-430.0,0.00019452,2]
[362281193,1748152241107,-500.0,0.00019452,2]
[362281195,1748152241118,-175.13771167,0.00019452,2]
[362281197,1748152241127,-385.01535103,0.00019452,2]
[362281199,1748152241136,-376.02928671,0.00019452,2]
[362281201,1748152241145,-430.0,0.00019452,2]
[362281203,1748152241155,-430.0,0.00019452,2]
[362281205,1748152241163,-157.58,0.00019452,2]
[362281208,1748152241173,-430.0,0.00019452,2]
[362281210,1748152241183,-430.0,0.00019452,2]
[362281212,1748152241192,-430.0,0.00019452,2]
[362281214,1748152241202,-430.0,0.00019452,2]
[362281216,1748152241211,-430.0,0.00019452,2]
[362281218,1748152241221,-430.0,0.00019452,2]
[362281220,1748152241230,-430.0,0.00019452,2]
[362281221,1748152241239,-430.0,0.00019452,2]
[362281223,1748152241249,-430.0,0.00019452,2]
[362281225,1748152241259,-430.0,0.00019452,2]
[362281227,1748152241268,-389.60399174,0.00019452,2]
[362281229,1748152241277,-155.33850033,0.00019452,2]
[362281231,1748152241286,-430.0,0.00019452,2]
[362281233,1748152241296,-430.0,0.00019452,2]
[362281235,1748152241306,-430.0,0.00019452,2]
[362281237,1748152241315,-430.0,0.00019452,2]
[362281239,1748152241326,-430.0,0.00019452,2]
[362281241,1748152241335,-435.76980325,0.00019452,2]
[362281243,1748152241344,-430.0,0.00019452,2]
[362281245,1748152241354,-498.30619822,0.00019452,2]
[362281247,1748152241363,-346.10544246,0.00019452,2]
[362281249,1748152241372,-430.0,0.00019452,2]
[362281251,1748152241381,-430.0,0.00019452,2]
[362281253,1748152241390,-430.0,0.00019452,2]
[362281255,1748152241399,-430.0,0.00019452,2]
[362281257,1748152241409,-430.0,0.00019452,2]
[362281259,1748152241418,-430.0,0.00019452,2]
[362281261,1748152241427,-430.0,0.00019452,2]
[362281263,1748152241436,-430.0,0.00019452,2]
[362281265,1748152241445,-430.0,0.00019452,2]
[362281267,1748152241455,-430.0,0.00019452,2]
[362281269,1748152241464,-443.14,0.00019452,2]
[362281271,1748152241473,-430.0,0.00019452,2]
[362281273,1748152241482,-430.0,0.00019452,2]
[362281275,1748152241492,-514.63,0.00019452,2]
[362281277,1748152241501,-430.0,0.00019452,2]
[362281279,1748152241511,-912.07,0.00019452,2]
[362281281,1748152241520,-178.28350618,0.00019452,2]
[362281283,1748152241529,-430.0,0.00019452,2]
[362281285,1748152241540,-430.0,0.00019452,2]
[362281287,1748152241549,-464.54942022,0.00019452,2]
[362281289,1748152241558,-892.48,0.00019452,2]
[362281291,1748152241567,-430.0,0.00019452,2]
[362281293,1748152241577,-430.0,0.00019452,2]
[362281295,1748152241586,-430.0,0.00019452,2]
[362281297,1748152241595,-430.0,0.00019452,2]
[362281299,1748152241604,-430.0,0.00019452,2]
[362281301,1748152241613,-430.0,0.00019452,2]
[362281303,1748152241623,-1399.24,0.00019452,2]
[362281305,1748152241632,-430.0,0.00019452,2]
[362281307,1748152241641,-430.0,0.00019452,2]
[362281309,1748152241650,-430.0,0.00019452,2]
[362281311,1748152241660,-430.0,0.00019452,2]
[362281313,1748152241669,-683.86,0.00019452,2]
[362281315,1748152241679,-430.0,0.00019452,2]
[362281317,1748152241688,-430.0,0.00019452,2]
[362281319,1748152241698,-217.94429613,0.00019452,2]
[362281321,1748152241708,-685.77,0.00019452,2]
[362281323,1748152241717,-1412.95,0.00019452,2]
[362281325,1748152241727,-430.0,0.00019452,2]
[362281327,1748152241737,-432.11468585,0.00019452,2]
[362281329,1748152241746,-430.0,0.00019452,2]
[362281331,1748152241755,-186.97553902,0.00019452,2]
[362281333,1748152241765,-430.0,0.00019452,2]
[362281335,1748152241774,-430.09,0.00019452,2]
[362281337,1748152241783,-1817.58,0.00019452,2]
[362281339,1748152241793,-430.0,0.00019452,2]
[362281341,1748152241802,-1072.79,0.00019452,2]
[362281343,1748152241812,-946.12,0.00019452,2]
[362281345,1748152241821,-430.0,0.00019452,2]
[362281347,1748152241830,-430.0,0.00019452,2]
[362281349,1748152241840,-430.0,0.00019452,2]
[362281351,1748152241850,-430.0,0.00019452,2]
[362281353,1748152241859,-430.0,0.00019452,2]
[362281355,1748152241868,-430.0,0.00019452,2]
[362281357,1748152241878,-588.99,0.00019452,2]
[362281359,1748152241888,-581.15,0.00019452,2]
[362281361,1748152241897,-1281.07,0.00019452,2]
[362281363,1748152241907,-602.07,0.00019452,2]
[362281365,1748152241916,-430.0,0.00019452,2]
[362281367,1748152241926,-430.0,0.00019452,2]
[362281369,1748152241935,-981.44,0.00019452,2]
[362281371,1748152241944,-912.73,0.00019452,2]
[362281372,1748152241954,-430.0,0.00019452,2]
[362281373,1748152241964,-430.9910693,0.00019452,2]
[362281375,1748152241974,-430.0,0.00019452,2]
[362281376,1748152241984,-438.03,0.00019452,2]
[362281378,1748152241993,-430.0,0.00019452,2]
[362281379,1748152242003,-500.0,0.00019564,2]
[362281380,1748152242013,-500.0,0.00019587,2]
[362281381,1748152242024,-500.0,0.00019587,2]
[362281382,1748152242035,-500.0,0.00019587,2]
[362281383,1748152242049,-359.78564372,0.00019587,2]
[362281384,1748152242060,-500.0,0.00019587,2]
[362281387,1748152242157,-500.0,0.00019587,2]
[362281388,1748152242178,-500.0,0.00019643,2]
[362281389,1748152242188,-500.0,0.0001967,2]
[362281390,1748152242197,-509.60750908,0.0001967,2]
[362281391,1748152242207,-707.0,0.00019676,2]
[362281392,1748152242216,-2233.0,0.00019676,2]
[362281393,1748152242225,-500.0,0.00019725,2]
[362281394,1748152242235,-442.96691468,0.00019725,2]
[362281395,1748152242244,-500.0,0.00019725,2]
[362281396,1748152242253,-218.1897059,0.00019725,2]
[362281397,1748152242262,-396.10551505,0.00019725,2]
[362281398,1748152242272,-500.0,0.00019725,2]
[362281399,1748152242281,-500.0,0.00019725,2]
[362281400,1748152242291,-151.0,0.00019726,2]
[362281401,1748152242300,-151.0,0.00019726,2]
[362281402,1748152242309,-151.0,0.00019726,2]
[362281403,1748152242319,-430.0,0.00019726,2]
[362281404,1748152242328,-430.0,0.00019726,2]
[362281405,1748152242340,-430.0,0.00019726,2]
[362281406,1748152242351,-430.0,0.00019726,2]
[362281407,1748152242361,-430.0,0.00019726,2]
[362281408,1748152242371,-430.0,0.00019726,2]
[362281409,1748152242380,-430.0,0.00019726,2]
[362281410,1748152242389,-443.14,0.00019726,2]
[362281411,1748152242398,-514.63,0.00019726,2]
[362281412,1748152242407,-430.0,0.00019726,2]
[362281413,1748152242416,-912.07,0.00019726,2]
[362281414,1748152242426,-430.0,0.00019726,2]
[362281415,1748152242436,-892.48,0.00019726,2]
[362281416,1748152242445,-430.0,0.00019726,2]
[362281417,1748152242455,-430.0,0.00019726,2]
[362281418,1748152242464,-430.0,0.00019726,2]
[362281419,1748152242473,-430.0,0.00019726,2]
[362281420,1748152242482,-1371.72871669,0.00019726,2]
[362281421,1748152242549,-400.0,0.00019178,2]
[362281436,1748152246529,-30.0,0.00019178,2]
[362281437,1748152246539,-430.0,0.00019178,2]
[362281438,1748152246549,-430.0,0.00019452,2]
[362281439,1748152246558,-430.0,0.00019452,2]
[362281440,1748152246568,-27.51128331,0.00019726,2]
[362281441,1748152246577,-331.78871669,0.00019726,2]
[362281444,1748152397362,-261.0,0.00024,120]
[362281445,1748152663153,196.940076,0.00013699,2]
[362281451,1748152877591,5730.0,0.00024658,120]
[362281465,1748153300096,4371.1360036,0.0002464,60]
[362281523,1748153438670,-8594.3464196,0.0001829,2]
[362281524,1748153438680,-163.77836932,0.00019078,2]
[362281525,1748153438690,-300.0,0.00019099,2]
[362281526,1748153438699,-300.0,0.00019099,2]
[362281527,1748153438709,-2120.058474,0.000191,2]
[362281528,1748153438719,-430.0,0.00019178,2]
[362281529,1748153438728,-430.0,0.00019178,2]
[362281530,1748153438737,-430.0,0.00019178,2]
[362281531,1748153438747,-430.0,0.00019178,2]
[362281532,1748153438756,-430.0,0.00019178,2]
[362281533,1748153438766,-430.0,0.00019178,2]
[362281534,1748153438775,-798.06,0.00019178,2]
[362281535,1748153438785,-450.31,0.00019178,2]
[362281536,1748153438797,-780.92,0.00019178,2]
[362281537,1748153438808,-270.05621162,0.00019178,2]
[362281538,1748153438818,-485.18024815,0.00019178,2]
[362281539,1748153438832,-430.0,0.00019178,2]
[362281540,1748153438841,-33.7697109,0.00019178,2]
[362281541,1748153438855,-396.2302891,0.00019178,2]